Cogmind - Beta 14 @@@ ROGUE MODE // 2024.09.09 @ 20:55:40 Player: LEWiKK Result: Destroyed by B-75 Beast with Heavy Machine Gun Performance ------------- Evolutions (4) 2000 Regions Visited (8) 1600 Robots Destroyed (56) 280 Value Destroyed (2100) 2100 Prototype IDs (24) 480 Alien Tech Used (0) 0 Bonus (300) 300 TOTAL SCORE: 6760 Bonus ------- Aligned with FarCom 300 Cogmind --------- Core Integrity 0/850 Matter 76/300 Energy 94/100 System Corruption 6% Temperature Cool (0) Movement Rolling (100) Location -6/Extension Parts ------- > --- POWER (1) -------- (None) > --- PROPULSION (4) --- Compact Wheel Compact Wheel > --- UTILITY (6) ------ Large Storage Unit Advanced Targeting Computer > --- WEAPON (4) ------- (None) > --- INVENTORY (15) --- Angular Momentum Engine Light Angular Momentum Engine Improved Heat Sink Improved Heat Sink Improved Heat Sink Targeting Computer Target Analyzer Target Analyzer Target Analyzer Improved Trap Extractor (0/6) Datajack Peak State ------------ > --- POWER ------------ Light Angular Momentum Engine > --- PROPULSION ------- Compact Wheel Armored Wheel Armored Huge Wheel > --- UTILITY ---------- Improved Heat Sink Large Storage Unit Medium Battery Modified TNC Advanced Targeting Computer Corruption Screen > --- WEAPON ----------- Heavy Laser Heavy Ion Cannon Phase Cannon > --- INVENTORY -------- Light Nuclear Core Light Nuclear Core Improved Heat Sink Improved Heat Sink Improved Heat Sink Targeting Computer Target Analyzer Target Analyzer Target Analyzer Improved Trap Extractor Missile Launcher Datajack [Rating: 50] Favorites ----------- Power Light Angular Momentum Engine Engine Light Angular Momentum Engine Propulsion Light Treads Treads Light Treads Leg Aluminum Leg Wheel Compact Wheel Utility Large Storage Unit Device Disposable Heat Sink Storage Large Storage Unit Processor Modified TNC Protection Improved Light Armor Plating Weapon Beam Rifle Energy Gun Beam Rifle Energy Cannon Heavy Ion Cannon Ballistic Gun Battle Rifle Ballistic Cannon Magnetic Acceleration Cannon Launcher Rocket Launcher Special Weapon Mining Laser Slashing Weapon Ripper Build | -11 -10 -10 -10 -9 -8 -7 -6 -6 ------- Run | Yrd Mat Min Exi Min Mat Fac Fac Ext Slots Evolved 8 | . . . . . 4 2 2 . Power . | . . . . . . . . . Propulsion 2 | . . . . . 1 . 1 . Utility 4 | . . . . . 2 1 1 . Weapon 2 | . . . . . 1 1 . . Parts Attached 57 | . 10 2 3 4 11 6 11 10 Power 4 | . . . 1 . 1 1 1 . Engine 4 | . . . 1 . 1 1 1 . Core . | . . . . . . . . . Reactor . | . . . . . . . . . Propulsion 21 | . 5 . . 3 5 1 5 2 Treads 8 | . 4 . . . 3 1 . . Leg 1 | . 1 . . . . . . . Wheel 12 | . . . . 3 2 . 5 2 Hover . | . . . . . . . . . Flight . | . . . . . . . . . Utility 11 | . 3 . . . 1 3 1 3 Device 4 | . 2 . . . . 1 . 1 Storage 2 | . 1 . . . . 1 . . Processor 3 | . . . . . 1 1 1 . Hackware . | . . . . . . . . . Protection 2 | . . . . . . . . 2 Artifact . | . . . . . . . . . Weapon 21 | . 2 2 2 1 4 1 4 5 Energy Gun 11 | . 2 1 2 1 3 1 1 . Energy Cannon 2 | . . . . . . . 2 . Ballistic Gun 1 | . . . . . . . . 1 Ballistic Cannon 2 | . . . . . . . . 2 Launcher 3 | . . 1 . . 1 . . 1 Special Weapon 1 | . . . . . . . 1 . Impact Weapon . | . . . . . . . . . Slashing Weapon 1 | . . . . . . . . 1 Piercing Weapon . | . . . . . . . . . Special Melee Weapon . | . . . . . . . . . Unidentified Prototypes . | . . . . . . . . . Parts Lost 37 | . . 2 . 4 3 1 10 17 Power 4 | . . 1 . . . 1 1 1 Propulsion 12 | . . . . 3 1 . 5 3 Utility 5 | . . . . . . . . 5 Weapon 16 | . . 1 . 1 2 . 4 8 Highest Loss Streak 8 | . . 2 . 2 3 1 4 8 To Critical Strikes . | . . . . . . . . . Average Slot Usage (%) 83 | . 96 87 57 97 88 90 87 72 Engine 6 | . 14 5 . 14 9 6 5 2 Treads 13 | . 25 28 28 12 3 17 9 . Wheel 7 | . . . . 13 22 5 12 10 Device 9 | . 12 14 14 14 9 7 6 5 Storage 12 | . 14 14 14 14 9 11 13 12 Processor 10 | . . . . . 7 11 19 19 Energy Gun 12 | . 18 24 . 27 20 20 10 2 Energy Cannon 1 | . . . . . . . 3 3 Ballistic Gun 1 | . 9 . . . . . . 3 Ballistic Cannon 1 | . . . . . . . . 6 Launcher 1 | . . . . . 6 7 1 . Peak Build Rating 50 | . 11 11 12 12 22 32 49 50 Average Rating 26 | . 7 9 7 11 20 27 41 43 On Entrance 17 | 6 6 11 10 12 12 22 32 49 Naked Turns . | . . . . . . . . . Heaviest Build 52 | 13 32 32 30 30 34 44 52 52 Greatest Support 60 | 20 40 40 40 40 42 60 60 56 Greatest Overweight (x) 13 | . 1 . . 1 1 1 3 13 Average Overweight (x) . | . . . . . . . . . Largest Inventory Capacity 15 | . 15 15 15 15 15 15 15 15 Average Capacity 14 | . 14 15 15 15 15 15 15 15 Most Carried 15 | . 13 13 15 15 12 15 15 14 Average Carried 12 | . 6 12 14 13 9 13 13 13 Final Capacity 15 | 8 15 15 15 15 15 15 15 15 Final Carried 15 | 6 13 12 12 13 12 15 13 11 Class Distribution -------------------- 49% | Mutant 37% | Skirmisher 11% | Scavenger-Skirmisher Dominant Class ---------------- Mutant | -10/Materials Mutant | -10/Mines Mutant | -10/Exiles Mutant | -9/Mines Skirmisher | -8/Materials Skirmisher | -7/Factory Scavenger-Skirmisher | -6/Factory Skirmisher | -6/Extension Resources | -11 -10 -10 -10 -9 -8 -7 -6 -6 ----------- Run | Yrd Mat Min Exi Min Mat Fac Fac Ext Matter Collected 1041 | 200 39 127 . 106 161 45 102 261 Remotely . | . . . . . . . . . Salvage Created 2215 | . 143 172 . 311 258 173 467 691 Parts 98 | . 9 6 . 12 19 9 24 19 Haulers Intercepted . | . . . . . . . . . Recyclers Shooed 3 | . . . . 1 . . 2 . Parts Field Recycled . | . . . . . . . . . Retrieved Matter . | . . . . . . . . . Parts Self-Destructed . | . . . . . . . . . Prevented . | . . . . . . . . . Kills | -11 -10 -10 -10 -9 -8 -7 -6 -6 ------- Run | Yrd Mat Min Exi Min Mat Fac Fac Ext Combat Hostiles Destroyed 54 | . 5 9 . 6 10 3 11 10 Guns 25 | . 5 3 . 6 3 3 3 2 Cannons 12 | . . . . . . . 4 8 AOE 14 | . . 6 . . 6 . 2 . Classes Destroyed 14 | . 2 2 . 1 4 1 1 3 Worker 1 | . . 1 . . . . . . Tunneler 1 | . . . . . 1 . . . Recycler 4 | . . . . 2 . . . 2 Operator 1 | . . . . . . . . 1 Watcher 1 | . . . . . . . 1 . Swarmer 14 | . 3 . . 4 4 . 3 . Grunt 15 | . 2 3 . 2 2 . 3 3 Duelist 1 | . . . . . 1 . . . Sentry 8 | . . . . . 2 2 1 3 Hunter 1 | . . . . . 1 . . . Programmer 6 | . . . . . . 1 4 1 Behemoth 1 | . . . . . . . . 1 Assembled 6 | . . 6 . . . . . . Savage 1 | . . . . . . . . 1 Butcher 1 | . . . . . . . . 1 Best Kill Streak 9 | . 3 7 . 4 9 1 4 3 Combat Bots Only 8 | . 3 6 . 4 8 1 4 3 Max Kills in Single Turn 4 | . 1 4 . 1 2 1 2 2 Gunslinging . | . . . . . . . . . Exploded 4 | . . 4 . . 2 . 1 . Melee . | . . . . . . . . . Uniques/NPCs Destroyed . | . . . . . . . . . Combat | -11 -10 -10 -10 -9 -8 -7 -6 -6 -------- Run | Yrd Mat Min Exi Min Mat Fac Fac Ext Hostile Shots Fired 519 | . 28 53 . 55 21 40 90 232 Missed 163 | . 6 20 . 14 6 15 28 74 Damage Taken 4977 | . 182 638 . 381 180 209 884 2503 Core 1114 | . 28 106 . 63 29 23 156 709 Absorbed by Shields . | . . . . . . . . . Regen/Repaired (Parts) 113 | . 113 . . . . . . . Core Remaining (%) 77 | 100 . . . 21 94 96 . . Volleys Fired 178 | . 17 8 . 25 15 8 61 44 Largest 4 | . 2 2 . 2 3 3 4 3 Hottest 221 | . 112 112 . 112 175 188 221 219 Shots Fired 371 | . 34 17 . 44 31 21 109 115 Gun 244 | . 34 14 . 44 25 21 70 36 Cannon 99 | . . . . . . . 24 75 Launcher 15 | . . 3 . . 6 . 2 4 Special 13 | . . . . . . . 13 . Kinetic 90 | . 10 . . . . . . 80 Thermal 256 | . 14 14 . 44 25 21 107 31 Explosive 15 | . . 3 . . 6 . 2 4 Electromagnetic 10 | . 10 . . . . . . . Robot Hit Streak 17 | . 6 9 . 6 8 15 17 16 Robot Miss Streak 7 | . 6 3 . 5 2 2 3 7 Penetration Max . | . . . . . . . . . Secondary Targets 3 | . 2 . . 1 . . . . Max Gunslinging Chain 1 | . 1 . . 1 . . . . Shots Hit Robots 217 | . 18 10 . 27 15 16 62 69 Core Hits 131 | . 10 27 . 10 20 8 22 34 Critical Kills . | . . . . . . . . . Critical Parts Destroyed . | . . . . . . . . . Critical Strikes 12 | . . 2 . 2 3 . 1 4 Burn 9 | . . 2 . 2 3 . 1 1 Blast 3 | . . . . . . . . 3 Melee Attacks . | . . . . . . . . . Impact . | . . . . . . . . . Slashing . | . . . . . . . . . Piercing . | . . . . . . . . . Sneak Attacks . | . . . . . . . . . Combat Hostiles . | . . . . . . . . . Follow-up Attacks . | . . . . . . . . . Damage Inflicted 6306 | . 218 705 . 411 907 276 1727 2062 Guns 2543 | . 218 132 . 411 216 276 946 344 Cannons 1945 | . . . . . . . 437 1508 Explosions 1818 | . . 573 . . 691 . 344 210 Melee . | . . . . . . . . . Ramming . | . . . . . . . . . Kinetic 1245 | . 39 . . . . . . 1206 Thermal 3208 | . 144 132 . 411 216 276 1383 646 Explosive 1818 | . . 573 . . 691 . 344 210 Electromagnetic 35 | . 35 . . . . . . . Impact . | . . . . . . . . . Slashing . | . . . . . . . . . Piercing . | . . . . . . . . . Highest Corruption 6 | . 2 2 2 2 . . . 6 Average Corruption 2 | . 2 2 2 2 . . . 5 Corruption Purged . | . . . . . . . . . Corruption Blocked 8 | . . . . . . . 1 7 Effects 19 | . 1 5 9 4 . . . . Message Errors 3 | . . . 1 2 . . . . Matter Fused 7 | . 1 1 3 2 . . . . Heat Flow Errors 2 | . . . 2 . . . . . Energy Discharges 2 | . . . 2 . . . . . Data Loss (minor) 3 | . . 2 1 . . . . . Data Loss (major) 1 | . . 1 . . . . . . Misfires 1 | . . 1 . . . . . . Overload Shots . | . . . . . . . . . Overflow Damage 37 | . . 4 . . 15 . 16 2 Projectiles 18 | . . . . . . . 16 2 Explosions 19 | . . 4 . . 15 . . . Melee . | . . . . . . . . . Knockbacks 4 | . . . . . . . . 4 Impact . | . . . . . . . . . Kinetic 4 | . . . . . . . . 4 Secondary . | . . . . . . . . . Self-Inflicted Damage 22 | . . 22 . . . . . . Shots 1 | . . 1 . . . . . . Rammed . | . . . . . . . . . Targets Rammed . | . . . . . . . . . Kicked . | . . . . . . . . . Crushed . | . . . . . . . . . Highest Temperature 351 | . 193 128 107 199 194 196 199 351 Average Temperature 98 | . 67 60 56 124 62 93 111 122 Received Heat Transfer 966 | . 15 36 . 84 18 48 165 600 Siege Activations . | . . . . . . . . . Robots Corrupted . | . . . . . . . . . Combat Hostiles . | . . . . . . . . . Parts Fried . | . . . . . . . . . Impact Corruptions . | . . . . . . . . . Robots Melted 3 | . . . . . 1 . 2 . Combat Hostiles 3 | . . . . . 1 . 2 . Parts Melted 19 | . . . . 2 1 4 7 5 Heat Transferred 6734 | . 370 481 . 1184 740 592 2368 999 Parts Sabotaged . | . . . . . . . . . Parts Stolen . | . . . . . . . . . Parts Stripped . | . . . . . . . . . Power Chain Reactions . | . . . . . . . . . Alert | -11 -10 -10 -10 -9 -8 -7 -6 -6 ------- Run | Yrd Mat Min Exi Min Mat Fac Fac Ext Peak Influence 367 | . 199 95 . 130 367 166 146 182 Initial 166 | . . 18 . . . 166 21 . Average 65 | . 46 48 . 32 206 91 52 49 Maximum Alert Level 1 | . . . . . 1 . . . Low Security (%) 95 | . 100 100 . 100 31 100 100 100 Level 1 4 | . . . . . 68 . . . Level 2 . | . . . . . . . . . Level 3 . | . . . . . . . . . Level 4 . | . . . . . . . . . Level 5 . | . . . . . . . . . High Security . | . . . . . . . . . Max Security . | . . . . . . . . . Squads Dispatched 10 | . 2 . . . . 2 4 2 Investigation 2 | . . . . . . . 1 1 Extermination 3 | . . . . . . 1 2 . Reinforcement 5 | . 2 . . . . 1 1 1 Assault . | . . . . . . . . . Garrison . | . . . . . . . . . Intercept . | . . . . . . . . . Searches Triggered . | . . . . . . . . . Construction Impeded . | . . . . . . . . . Haulers Reinforced 1 | . . . . . . . 1 . Active Scanning Responses . | . . . . . . . . . Cargo Convoy Interrupts 1 | . . . . . . 1 . . Stealth | -11 -10 -10 -10 -9 -8 -7 -6 -6 --------- Run | Yrd Mat Min Exi Min Mat Fac Fac Ext Distress Signals 6 | . 1 . . . 2 1 . 2 Communications Jammed . | . . . . . . . . . Distress Signals . | . . . . . . . . . Times Spotted 91 | . 8 25 . 6 14 4 13 21 Peak Tracking Total 18 | . 3 18 . 4 6 2 4 5 Tactical Retreats 4 | . 2 . . . . . . 2 Traps | -11 -10 -10 -10 -9 -8 -7 -6 -6 ------- Run | Yrd Mat Min Exi Min Mat Fac Fac Ext Traps Triggered 4 | . 1 . . . . . . 3 Indirectly . | . . . . . . . . . Trap Hack Attempts . | . . . . . . . . . Triggered . | . . . . . . . . . Disarmed 1 | . . . . . . . . 1 Reprogrammed . | . . . . . . . . . Reused . | . . . . . . . . . Traps Extracted . | . . . . . . . . . Installed . | . . . . . . . . . Triggered 1 | . . . . . . 1 . . Machines | -11 -10 -10 -10 -9 -8 -7 -6 -6 ---------- Run | Yrd Mat Min Exi Min Mat Fac Fac Ext Machines Disabled 12 | . . . . . 3 . 4 5 Max in Single Turn 2 | . . . . . 1 . 2 1 Machines Repaired . | . . . . . . . . . Machines Dismantled . | . . . . . . . . . Machines Sabotaged . | . . . . . . . . . Overloaded Fab Kills . | . . . . . . . . . Hacking | -11 -10 -10 -10 -9 -8 -7 -6 -6 --------- Run | Yrd Mat Min Exi Min Mat Fac Fac Ext Machines Accessed 19 | . 5 . 3 . 1 2 3 5 Terminals 11 | . 4 . . . 1 . 1 5 Fabricators 2 | . . . . . . 2 . . Repair Stations 1 | . 1 . . . . . . . Recycling Units . | . . . . . . . . . Scanalyzers 2 | . . . . . . . 2 . Garrison Access . | . . . . . . . . . Total Hacks 76 | . 19 . 33 . 1 5 7 11 Successful 56 | . 12 . 33 . 1 1 4 5 Failed 20 | . 7 . . . . 4 3 6 Catastrophic 3 | . 1 . . . . . 1 1 Database Lockouts . | . . . . . . . . . Manual 16 | . 9 . 1 . 1 . 2 3 Terminals 29 | . 14 . . . 1 . 3 11 Fabricators 5 | . . . . . . 5 . . Repair Stations 5 | . 5 . . . . . . . Recycling Units . | . . . . . . . . . Scanalyzers 4 | . . . . . . . 4 . Garrison Access . | . . . . . . . . . Terminal Hacks 41 | . 3 . 33 . . . 1 4 Record 32 | . . . 32 . . . . . Open Door 2 | . . . . . . . . 2 Branch Access Points 1 | . 1 . . . . . . . Emergency Access Points 1 | . 1 . . . . . . . Disarm Traps 1 | . . . . . . . . 1 Maintenance Status 1 | . . . . . . . . 1 Registered Components 1 | . . . . . . . 1 . Registered Prototypes 1 | . 1 . . . . . . . Derelict Proto ID Bank 1 | . . . 1 . . . . . Fabricator Hacks 1 | . . . . . . 1 . . Build 1 | . . . . . . 1 . . Repair Station Hacks 5 | . 5 . . . . . . . Scan Component 2 | . 2 . . . . . . . Repair 2 | . 2 . . . . . . . Refit 1 | . 1 . . . . . . . Recycling Unit Hacks . | . . . . . . . . . Scanalyzer 2 | . . . . . . . 2 . Insert Component 1 | . . . . . . . 1 . Analyze 1 | . . . . . . . 1 . Garrison Access Hacks . | . . . . . . . . . Unauthorized Hacks 7 | . 4 . . . 1 . 1 1 Terminals 7 | . 4 . . . 1 . 1 1 Botnet 7 | . 4 . . . 1 . 1 1 Fabricators . | . . . . . . . . . Repair Stations . | . . . . . . . . . Recycling Units . | . . . . . . . . . Scanalyzers . | . . . . . . . . . Garrison Access . | . . . . . . . . . Data Cores Recovered . | . . . . . . . . . Used . | . . . . . . . . . Hacking Detections 12 | . 4 . . . . 2 3 3 Full Trace Events 2 | . . . . . . . 1 1 Feedback Events . | . . . . . . . . . Feedback Blocked . | . . . . . . . . . Robot Schematics Acquired . | . . . . . . . . . Robots Built 1 | . . . . . . 1 . . Authchips . | . . . . . . . . . Time 116 | . . . . . . 116 . . Total Robot Build Rating 3 | . . . . . . 3 . . Part Schematics Acquired 1 | . . . . . . . 1 . Parts Built . | . . . . . . . . . Authchips . | . . . . . . . . . Time . | . . . . . . . . . Total Part Build Rating . | . . . . . . . . . Parts Repaired 2 | . 2 . . . . . . . Time 52 | . 52 . . . . . . . Parts Recycled . | . . . . . . . . . Recycled Matter . | . . . . . . . . . Retrieved Matter . | . . . . . . . . . Retrieved Components . | . . . . . . . . . Parts Scanalyzed 1 | . . . . . . . 1 . Part Schematics Acquired 1 | . . . . . . . 1 . Parts Damaged . | . . . . . . . . . Bothacking | -11 -10 -10 -10 -9 -8 -7 -6 -6 ------------ Run | Yrd Mat Min Exi Min Mat Fac Fac Ext Used RIF Installer . | . . . . . . . . . Robots Hacked . | . . . . . . . . . Non-combat . | . . . . . . . . . Combat . | . . . . . . . . . Robot Hacks Applied . | . . . . . . . . . Relay Couplers Released . | . . . . . . . . . Fabnet Peak Effective % . | . . . . . . . . . Robots Rewired 4 | . . . . . . . . 4 Allies Hacked . | . . . . . . . . . Hacks Repelled . | . . . . . . . . . Allies | -11 -10 -10 -10 -9 -8 -7 -6 -6 -------- Run | Yrd Mat Min Exi Min Mat Fac Fac Ext Total Allies 7 | . . . . . . 1 . 6 Largest Group 5 | . . . . . . 1 1 5 Highest-Rated Group 127 | . . . . . . 26 26 127 Highest-Rated Ally 31 | . . . . . . 26 26 31 Total Orders . | . . . . . . . . . Ally Attacks 21 | . . . . . . . . 21 Total Damage 343 | . . . . . . . . 343 Kills 1 | . . . . . . . . 1 Allies Corrupted . | . . . . . . . . . Allies Melted . | . . . . . . . . . Intel | -11 -10 -10 -10 -9 -8 -7 -6 -6 ------- Run | Yrd Mat Min Exi Min Mat Fac Fac Ext Robot Analysis Total . | . . . . . . . . . Derelict Logs Recovered . | . . . . . . . . . Drone Launches . | . . . . . . . . . Drone Recoveries . | . . . . . . . . . Exploration | -11 -10 -10 -10 -9 -8 -7 -6 -6 ------------- Run | Yrd Mat Min Exi Min Mat Fac Fac Ext Turns Passed 6229 | . 846 322 759 421 339 911 1389 1242 Spaces Moved 3626 | 1 373 181 472 258 270 505 1021 545 Core 9 | . . . . . . . . 9 Treads 1661 | . 330 181 472 100 39 505 34 . Legs 44 | 1 43 . . . . . . . Wheels 1912 | . . . . 158 231 . 987 536 Hover . | . . . . . . . . . Flight . | . . . . . . . . . Fastest Speed 93 | 120 120 160 160 100 93 160 96 96 Average Speed 134 | 120 189 160 160 124 103 160 109 111 Slowest Speed 700 | 120 240 160 160 160 240 240 160 700 Overloaded Moves . | . . . . . . . . . Propulsion Burnouts . | . . . . . . . . . Robots Hopped . | . . . . . . . . . Cave-ins Triggered . | . . . . . . . . . Exploration Rate (%) 38 | 2 47 51 91 53 24 13 21 48 Regions Visited 8 Branch Regions 4 Pre-discovered Areas 1 | . . . 1 . . . . . Known Exits Taken 1 | . 1 . . . . . . . Unknown Exits Taken 7 | 1 . 1 1 1 1 1 1 . Scrap Searched 2 | . . 1 . 1 . . . . Spaces Dug . | . . . . . . . . . Terrain Destroyed 94 | . . 24 . . 32 . 19 19 Melee . | . . . . . . . . . Projectile 8 | . . . . . . . . 8 AOE 86 | . . 24 . . 32 . 19 11 Terrain Rammed . | . . . . . . . . . Walls Destroyed . | . . . . . . . . . Machines Disabled . | . . . . . . . . . Actions | -11 -10 -10 -10 -9 -8 -7 -6 -6 --------- Run | Yrd Mat Min Exi Min Mat Fac Fac Ext Total 4617 | . 483 197 477 314 303 591 1167 1085 Wait 634 | . 59 7 . 24 1 62 62 419 Move 3618 | . 372 180 471 257 269 504 1020 545 Hop . | . . . . . . . . . Pick Up 38 | . 11 . 1 4 3 6 9 4 Fast Attach 22 | . 5 . . 1 2 4 4 6 Attach 31 | . 4 1 3 3 8 1 7 4 Detach 14 | . 7 . 2 . 4 1 . . Swap 4 | . 1 1 . . 1 1 . . Drop 17 | . 7 . . . . 4 4 2 Fire 178 | . 17 8 . 25 15 8 61 44 Melee . | . . . . . . . . . Ram . | . . . . . . . . . Kick . | . . . . . . . . . Crush . | . . . . . . . . . Escape Stasis 16 | . . . . . . . . 16 Rewire 45 | . . . . . . . . 45 Trap . | . . . . . . . . . Miscellaneous . | . . . . . . . . . Route ------- -11/Scrapyard -10/Materials (discovered 2 exits: [*Mat] / *Min) -10/Mines (discovered 3 exits: [*Mat x2] / *Exi) -10/Exiles (discovered 2 exits: [*Min x2]) -9/Mines -8/Materials -7/Factory -6/Factory -6/Extension History --------- Turn | Location | Event 1 | -11/Scrapyard | Discovered new exit (range 0) 1 | -11/Scrapyard | Entered Materials 309 | -10/Materials | Build established: Mutant 543 | -10/Materials | Discovered new exit (range 3) 624 | -10/Materials | Identified exit to Mines 715 | -10/Materials | Repaired Lgt. Treads 742 | -10/Materials | Repaired Lgt. Treads 847 | -10/Materials | Entered Mines 882 | -10/Mines | Discovered new exit (range 12) 945 | -10/Mines | Assembled infested the area 950 | -10/Mines | Assisted by a Guerilla fighting off Assembled 1028 | -10/Mines | Found DCF Scrap (13 items) 1034 | -10/Mines | Core integrity fell below 50% 1097 | -10/Mines | Discovered new exit (range 15) 1161 | -10/Mines | Deemed a non-threat by the Exiles lab entrance 1163 | -10/Mines | Discovered new exit (range 5) 1169 | -10/Mines | Entered Exiles 1198 | -10/Exiles | Discovered new exit (range 15) 1218 | -10/Exiles | Met 8R-AWN 1246 | -10/Exiles | Met EX-HEX 1308 | -10/Exiles | Met EX-DEC 1316 | -10/Exiles | Learned location of Zion (-7) 1366 | -10/Exiles | Met EX-BIN 1394 | -10/Exiles | Aligned with FarCom system 1396 | -10/Exiles | Given EX-Vault access code 1436 | -10/Exiles | Opened EX-Vault 1442 | -10/Exiles | Found Modified TNC 1483 | -10/Exiles | Warned to stay clear of 0b10 Research branches 1668 | -10/Exiles | Visited The Gauntlet 1909 | -10/Exiles | Discovered new exit (range 10) 1928 | -10/Exiles | Left Exiles lab with Modified TNC 1928 | -10/Exiles | Entered Mines 1985 | -9/Mines | Received a Rocket Launcher from a helpful Derelict 2342 | -9/Mines | Discovered new exit (range 9) 2349 | -9/Mines | Entered Materials 2349 | -8/Materials | Evolved 4 slots: Propulsion x1, Utility x2, Weapon x1 2471 | -8/Materials | Lost 3 parts (1n2w) 2476 | -8/Materials | Destroyed 8 combat bots 2628 | -8/Materials | Discovered new exit (range 5) 2688 | -8/Materials | Entered Factory 2688 | -7/Factory | Evolved 2 slots: Utility x1, Weapon x1 2732 | -7/Factory | Build established: Skirmisher 3248 | -7/Factory | Fabricated O-24 Administrator? 3387 | -7/Factory | Cargo convoy interrupted 3573 | -7/Factory | Discovered new exit (range 5) 3599 | -7/Factory | Entered another Factory area 3599 | -6/Factory | Accompanied by 1 ally 3599 | -6/Factory | Evolved 2 slots: Propulsion x1, Utility x1 3990 | -6/Factory | Lost 4 parts (1p1n2w) 4271 | -6/Factory | Build established: Scavenger-Skirmisher 4276 | -6/Factory | Found Prototype Processor 4718 | -6/Factory | Identified Exp. Targeting Computer 4758 | -6/Factory | Build established: Mutant 4949 | -6/Factory | Discovered new exit (range 16) 4988 | -6/Factory | Entered Extension 5035 | -6/Extension | Rescued a captive Derelict 5279 | -6/Extension | Build established: Skirmisher 5381 | -6/Extension | Rescued a captive Derelict 5436 | -6/Extension | Spotted B-75 Beast 5490 | -6/Extension | Lost 6 parts (1p2n3w) 5997 | -6/Extension | Disrupted transfer network 6125 | -6/Extension | Destroyed B-75 Beast 6198 | -6/Extension | Core integrity fell below 50% 6209 | -6/Extension | Spotted B-75 Beast 6215 | -6/Extension | Core integrity fell below 20% 6230 | -6/Extension | Destroyed by B-75 Beast with Heavy Machine Gun Last Messages --------------- Door Terminal disabled. Magnetic Acceleration Cannon destroyed. U-05 Engineer builds a Wall. Med. Battery destroyed. Modified TNC destroyed. Corruption Screen intercepted 2% system corruption. Corruption Screen intercepted 4% system corruption. Corruption Screen expended. System corrupted by crushing effect (+1). Imp. Heat Sink destroyed. System corrupted by crushing effect (+5). Acquired Com. Wheel. Acquired 3 matter. Acquired 1 matter. Critical hit (Burn: +37). Knocked back. Imp. Light Armor Plating destroyed. R-10 Processor destroyed. Imp. Light Armor Plating destroyed. Knocked back. Map ----- +----------------------------------------------------+ | ????# #?????????????????????????????????? | | ????# ###### #?????????????????????????????????? | | ????## ##????# #?????????????????????????????????? | | ?????# #?????# #?????????????????????????????????? | | ?????# #?????# #?????????????????????????????????? | | ?????# #?????# #?????????????????????????????????? | | ###### #?????# #?????????????????????????????????? | | #?????# #?????????????????????????????????? | | ########?????# #?????????????????????????????????? | | ?????????????# #?????????????????????????????????? | | ?????????????# #????????? ???????????????????????? | | ?????????????# #????????? ???????????????????????? | | ???????????### #????????? ???????????????????????? | | ???????????" #????????? ???????????????????????? | | ???????????#T# #????????? #??????????????????????? | | ???????????### #????????? ??????????????????????? | | ?????????????# #????????? #??????????????????????? | | ?????????????#%#????????# #??????????????????????? | | ?????????????# #????????# #??????????????????????? | | ?????????????#%#?######?# #??????????????????????? | | ???????????###%### ## ### ###????????????????????? | | ???????????#% %%%% "" ""#????????????????????? | | ???????????# % % !/" " #????????????????????? | | ???????????#u =%/ #????????????????????? | | ???????????# %R R !!! % ##???????????????????? | | ############[= % = @ ;######??????????????? | | %%%g! u % ?????????? | | % % !g% u ????????? | | % b ?????????? | | %% ?????????? | | % BB ??????????? | | ############ BB ###########??????????? | | ???????????# % #????????????????????? | | ???????????# #????????????????????? | | ???????????# #????????????????????? | | ???????????# #????????????????????? | | ???????????###### #"""#######????????????????????? | | ????????????????###??????????????????????????????? | | ?????????????????????????????????????????????????? | | | | | | | | | | | | | | | | | | | | | | | +----------------------------------------------------+ Best States ------------- Heat Dissipation 51 Coolant Potential 50 Energy Generation 18 Energy Capacity 415 Matter Stores 300 Matter Capacity 300 Sight Range 16 Terrain Scan Density 10 Corruption Block 8 Armor Coverage 300 Evasion (%) 55 Targeting Accuracy 8 Recoil Reduction 3 Item Schematics ----------------- Exp. Targeting Computer | -6/Factory | Scanalyzed Robot Schematics ------------------ None Fabricated ------------ O-24 Administrator | x1 | -7/Factory | Preloaded Alien Tech Used ----------------- None Achievements -------------- None Challenges ------------ None Game ------ Seed BoreInsulatedPower Manual? 0 Play Time 01:01:17 Cumulative 59.0 hours Start 2024.09.09 @ 19:55:31 End 2024.09.09 @ 20:55:40 Sessions 1 Manual Loads 0 Difficulty Rogue Special Mode None Game No. 57 Rogue 57 Adventurer 0 Explorer 0 Win Type - Total 2 Types 1/0/0/1/0/0/0/0/0 Lore% 48 Gallery% 38 Achievement% 38 Wizard Run 0 Options --------- Layout 1 ASCII 0 Keyboard 1 Movement Numpad Keybinds 0 Fullscreen 2 Font 20/SmallcapsGlow Map View 54x42 Zoom Use 0% Tactical HUD 0 Map Filters NONE Filters NONE Steam 1 RUN: f0877989-e044-421a-99ab-41c46f71380f